[Event "MCR rapid mládeže 2023 U16"]
[Site "Harachov, Czech Republic"]
[Date "2023.09.09"]
[Round "2.20"]
[White "Rudlof, Adam"]
[Black "Frantsev, Iegor"]
[Result "0-1"]
[TimeControl "20min+5s/move"]
[WhiteElo "1436"]
[BlackElo "1431"]

1. e4 {[%clk 00:20:07]} {[%emt 00:00:03]} d5 {[%clk 00:20:08]} {[%emt
00:00:02]} 2. exd5 {[%clk 00:20:08]} {[%emt 00:00:05]} Qxd5 {[%clk 00:20:11]}
{[%emt 00:00:01]} 3. Nc3 {[%clk 00:20:12]} {[%emt 00:00:01]} Qd8 {[%clk
00:20:15]} {[%emt 00:00:01]} 4. d4 {[%clk 00:20:15]} {[%emt 00:00:02]} Nf6
{[%clk 00:20:16]} {[%emt 00:00:04]} 5. Nf3 {[%clk 00:20:19]} {[%emt 00:00:01]}
g6 {[%clk 00:20:08]} {[%emt 00:00:12]} 6. Bc4 {[%clk 00:20:22]} {[%emt
00:00:03]} Bg7 {[%clk 00:20:09]} {[%emt 00:00:04]} 7. O-O {[%clk 00:20:23]}
{[%emt 00:00:04]} O-O {[%clk 00:20:05]} {[%emt 00:00:08]} 8. h3 {[%clk
00:20:22]} {[%emt 00:00:06]} Nc6 {[%clk 00:19:35]} {[%emt 00:00:34]} 9. Bf4
{[%clk 00:19:24]} {[%emt 00:01:05]} Nh5 {[%clk 00:18:43]} {[%emt 00:00:55]} 10.
Be3 {[%clk 00:19:02]} {[%emt 00:00:28]} e6 {[%clk 00:16:31]} {[%emt 00:02:17]}
11. Re1 {[%clk 00:16:08]} {[%emt 00:03:00]} a6 {[%clk 00:15:42]} {[%emt
00:00:54]} 12. a4 {[%clk 00:15:53]} {[%emt 00:00:20]} b6 {[%clk 00:13:29]}
{[%emt 00:02:17]} 13. Bg5 {[%clk 00:09:06]} {[%emt 00:06:52]} Qd7 {[%clk
00:12:49]} {[%emt 00:00:41]} 14. d5 {[%clk 00:05:28]} {[%emt 00:03:48]} exd5
{[%clk 00:09:46]} {[%emt 00:03:07]} 15. Qxd5 {[%clk 00:05:01]} {[%emt
00:00:33]} Nf6 {[%clk 00:09:02]} {[%emt 00:00:47]} 16. Qxd7 {[%clk 00:04:35]}
{[%emt 00:00:33]} Bxd7 {[%clk 00:08:09]} {[%emt 00:00:58]} 17. Bxf6 {[%clk
00:03:31]} {[%emt 00:01:09]} Bxf6 {[%clk 00:07:59]} {[%emt 00:00:15]} 18. Nd5
{[%clk 00:03:35]} Bd8 {[%clk 00:04:52]} {[%emt 00:03:11]} 19. Rad1 {[%clk
00:03:09]} {[%emt 00:00:32]} Na5 {[%clk 00:04:33]} {[%emt 00:00:24]} 20. Bb3
{[%clk 00:02:42]} {[%emt 00:00:32]} Nxb3 {[%clk 00:04:22]} {[%emt 00:00:16]} 21.
cxb3 {[%clk 00:02:46]} {[%emt 00:00:01]} Be6 {[%clk 00:04:24]} {[%emt
00:00:03]} 22. Ne5 {[%clk 00:01:49]} {[%emt 00:01:02]} Bxd5 {[%clk 00:02:45]}
{[%emt 00:01:44]} 23. Rxd5 {[%clk 00:01:51]} {[%emt 00:00:03]} Re8 {[%clk
00:02:38]} {[%emt 00:00:11]} 24. Kf1 {[%clk 00:01:15]} {[%emt 00:00:41]} Bf6
{[%clk 00:02:31]} {[%emt 00:00:11]} 25. Nd3 {[%clk 00:01:08]} {[%emt 00:00:12]}
Red8 {[%clk 00:02:20]} {[%emt 00:00:16]} 26. Rxd8+ {[%clk 00:00:49]} {[%emt
00:00:25]} Rxd8 {[%clk 00:02:23]} {[%emt 00:00:01]} 27. Re3 {[%clk 00:00:37]}
{[%emt 00:00:17]} c5 {[%clk 00:01:10]} {[%emt 00:01:18]} 28. Ke2 {[%clk
00:00:30]} {[%emt 00:00:13]} Kg7 {[%clk 00:00:44]} {[%emt 00:00:32]} 29. a5
{[%clk 00:00:23]} {[%emt 00:00:12]} bxa5 {[%emt 00:00:46]} 30. Nxc5 {[%clk
00:00:16]} {[%emt 00:00:07]} Bd4 {[%clk 00:00:11]} 31. Nb7 {[%clk 00:00:13]}
{[%emt 00:00:09]} Rb8 {[%clk 00:00:13]} {[%emt 00:00:03]} 32. Rd3 {[%clk
00:00:15]} {[%emt 00:00:03]} Rxb7 {[%emt 00:00:02]} 33. Rxd4 {[%clk 00:00:18]}
{[%emt 00:00:01]} Rxb3 {[%clk 00:00:21]} {[%emt 00:00:01]} 34. Rd2 {[%clk
00:00:13]} {[%emt 00:00:10]} a4 {[%clk 00:00:24]} {[%emt 00:00:02]} 35. Kd1
{[%clk 00:00:14]} {[%emt 00:00:04]} a3 {[%clk 00:00:27]} {[%emt 00:00:02]} 36.
bxa3 {[%clk 00:00:14]} {[%emt 00:00:05]} Rxa3 {[%clk 00:00:31]} {[%emt
00:00:01]} 37. Kc1 {[%clk 00:00:18]} {[%emt 00:00:02]} Rb3 {[%clk 00:00:33]}
{[%emt 00:00:02]} 38. Kc2 {[%clk 00:00:21]} {[%emt 00:00:03]} Rb7 {[%clk
00:00:36]} {[%emt 00:00:01]} 39. Rd6 {[%clk 00:00:20]} {[%emt 00:00:05]} Ra7
{[%clk 00:00:39]} {[%emt 00:00:03]} 40. Kb3 {[%clk 00:00:23]} {[%emt 00:00:02]}
a5 {[%clk 00:00:43]} {[%emt 00:00:01]} 41. Ka4 {[%clk 00:00:24]} {[%emt
00:00:04]} f5 {[%clk 00:00:41]} {[%emt 00:00:06]} 42. g4 {[%clk 00:00:13]}
{[%emt 00:00:16]} fxg4 {[%clk 00:00:37]} {[%emt 00:00:09]} 43. hxg4 {[%clk
00:00:17]} {[%emt 00:00:01]} Rf7 {[%clk 00:00:31]} {[%emt 00:00:12]} 44. Kxa5
{[%clk 00:00:12]} {[%emt 00:00:10]} Rxf2 {[%clk 00:00:34]} {[%emt 00:00:02]} 45.
Rd4 {[%clk 00:00:11]} {[%emt 00:00:06]} Rb2 {[%clk 00:00:36]} {[%emt 00:00:02]}
46. Ka4 {[%clk 00:00:14]} {[%emt 00:00:03]} Kh6 {[%clk 00:00:33]} {[%emt
00:00:07]} 47. Ka3 {[%clk 00:00:17]} {[%emt 00:00:03]} Rb6 {[%clk 00:00:32]}
{[%emt 00:00:02]} 48. Rc4 {[%clk 00:00:15]} {[%emt 00:00:11]} Rb5 {[%clk
00:00:26]} {[%emt 00:00:12]} 49. Ka4 {[%clk 00:00:13]} {[%emt 00:00:07]} Rb1
{[%clk 00:00:29]} {[%emt 00:00:01]} 50. Rf4 {[%clk 00:00:07]} {[%emt 00:00:11]}
Kg5 {[%clk 00:00:32]} {[%emt 00:00:02]} 51. Rc4 {[%clk 00:00:11]} {[%emt
00:00:01]} Rg1 {[%clk 00:00:32]} {[%emt 00:00:04]} 52. Kb3 {[%emt 00:00:03]}
Rxg4 {[%clk 00:00:35]} {[%emt 00:00:02]} 53. Rc5+ {[%clk 00:00:19]} Kh4 {[%clk
00:00:37]} {[%emt 00:00:03]} 54. Kc3 {[%clk 00:00:23]} Re4 {[%clk 00:00:24]}
{[%emt 00:00:18]} 55. Kd3 {[%clk 00:00:28]} Re8 {[%clk 00:00:26]} {[%emt
00:00:04]} 56. Rc4+ {[%clk 00:00:32]} {[%emt 00:00:02]} Kg3 {[%clk 00:00:23]}
{[%emt 00:00:06]} 57. Rc5 {[%clk 00:00:33]} {[%emt 00:00:05]} Kf4 {[%clk
00:00:15]} {[%emt 00:00:12]} 58. Rc4+ {[%clk 00:00:34]} {[%emt 00:00:05]} Kf5
{[%clk 00:00:19]} {[%emt 00:00:01]} 59. Rc5+ {[%clk 00:00:37]} {[%emt
00:00:02]} Re5 {[%clk 00:00:23]} {[%emt 00:00:01]} 60. Rc1 {[%clk 00:00:32]}
{[%emt 00:00:10]} h5 {[%clk 00:00:25]} {[%emt 00:00:02]} 61. Rf1+ {[%clk
00:00:36]} {[%emt 00:00:02]} Kg5 {[%clk 00:00:26]} {[%emt 00:00:03]} 62. Rg1+
{[%clk 00:00:38]} {[%emt 00:00:04]} Kh6 {[%clk 00:00:29]} {[%emt 00:00:02]} 63.
Kd4 {[%clk 00:00:43]} Re2 {[%clk 00:00:30]} {[%emt 00:00:03]} 64. Kd3 {[%clk
00:00:47]} {[%emt 00:00:03]} Re7 {[%clk 00:00:31]} {[%emt 00:00:02]} 65. Kd4
{[%clk 00:00:43]} {[%emt 00:00:10]} g5 {[%clk 00:00:33]} {[%emt 00:00:03]} 66.
Rg3 {[%clk 00:00:42]} {[%emt 00:00:06]} h4 {[%clk 00:00:36]} {[%emt 00:00:02]}
67. Rg1 {[%clk 00:00:43]} {[%emt 00:00:04]} Kh5 {[%clk 00:00:39]} {[%emt
00:00:01]} 68. Ra1 {[%clk 00:00:47]} {[%emt 00:00:01]} h3 {[%clk 00:00:40]}
{[%emt 00:00:04]} 69. Ra2 {[%clk 00:00:46]} {[%emt 00:00:07]} g4 {[%clk
00:00:41]} {[%emt 00:00:03]} 70. Ra5+ {[%clk 00:00:50]} {[%emt 00:00:01]} Kh4
{[%clk 00:00:45]} {[%emt 00:00:02]} 71. Ra8 {[%clk 00:00:40]} {[%emt 00:00:14]}
h2 {[%clk 00:00:38]} {[%emt 00:00:11]} 72. Kd3 {[%clk 00:00:30]} {[%emt
00:00:16]} Kg3 {[%clk 00:00:42]} {[%emt 00:00:01]} 73. Rh8 {[%clk 00:00:30]}
{[%emt 00:00:05]} Kg2 {[%clk 00:00:44]} {[%emt 00:00:03]} 74. Rg8 {[%clk
00:00:21]} {[%emt 00:00:14]} g3 {[%clk 00:00:40]} {[%emt 00:00:08]} 75. Ra8
{[%clk 00:00:17]} {[%emt 00:00:09]} h1=Q {[%clk 00:00:40]} {[%emt 00:00:06]} 76.
Ra2+ {[%clk 00:00:21]} {[%emt 00:00:02]} Kh3 {[%clk 00:00:43]} {[%emt
00:00:02]} 77. Ra8 {[%clk 00:00:21]} {[%emt 00:00:04]} Qxa8 {[%clk 00:00:45]}
{[%emt 00:00:03]} 0-1

[Event "MCR rapid mládeže 2023 U16"]
[Site "Harachov, Czech Republic"]
[Date "2023.09.09"]
[Round "2.21"]
[White "Chernyy, Andrey"]
[Black "Hokr, Matyas"]
[Result "1-0"]
[TimeControl "20min+5s/move"]
[WhiteElo "1582"]
[BlackElo "1226"]

1. e4 {[%clk 00:20:08]} {[%emt 00:00:02]} e6 {[%clk 00:20:09]} {[%emt
00:00:02]} 2. d4 {[%clk 00:20:10]} {[%emt 00:00:02]} d5 {[%clk 00:20:12]}
{[%emt 00:00:02]} 3. Nd2 {[%clk 00:20:13]} {[%emt 00:00:02]} dxe4 {[%clk
00:20:12]} {[%emt 00:00:05]} 4. Nxe4 {[%clk 00:20:16]} {[%emt 00:00:02]} Nf6
{[%clk 00:20:14]} {[%emt 00:00:02]} 5. Nxf6+ {[%clk 00:20:05]} {[%emt
00:00:17]} Qxf6 {[%clk 00:20:16]} {[%emt 00:00:02]} 6. Nf3 {[%clk 00:20:01]}
{[%emt 00:00:09]} Bd6 {[%clk 00:20:16]} {[%emt 00:00:06]} 7. Bd3 {[%clk
00:19:41]} {[%emt 00:00:24]} h6 {[%clk 00:20:14]} {[%emt 00:00:07]} 8. Be3
{[%clk 00:19:35]} {[%emt 00:00:11]} Nd7 {[%clk 00:19:51]} {[%emt 00:00:28]} 9.
c3 {[%clk 00:19:30]} {[%emt 00:00:10]} O-O {[%clk 00:19:35]} {[%emt 00:00:21]}
10. h3 {[%clk 00:18:59]} {[%emt 00:00:36]} Re8 {[%clk 00:19:16]} {[%emt
00:00:24]} 11. g4 {[%clk 00:18:22]} {[%emt 00:00:41]} Bf4 {[%clk 00:18:43]}
{[%emt 00:00:37]} 12. Qe2 {[%clk 00:14:08]} {[%emt 00:04:21]} Bxe3 {[%clk
00:18:16]} {[%emt 00:00:32]} 13. Qxe3 {[%clk 00:12:51]} {[%emt 00:01:22]} e5
{[%clk 00:17:54]} {[%emt 00:00:27]} 14. O-O-O {[%clk 00:11:10]} {[%emt
00:01:45]} b6 {[%clk 00:17:17]} {[%emt 00:00:42]} 15. Qe4 {[%clk 00:09:27]}
{[%emt 00:01:47]} Rb8 {[%clk 00:16:54]} {[%emt 00:00:29]} 16. Qh7+ {[%clk
00:08:37]} {[%emt 00:00:55]} Kf8 {[%clk 00:16:54]} {[%emt 00:00:05]} 17. Nxe5
{[%clk 00:08:14]} {[%emt 00:00:29]} Nxe5 {[%clk 00:16:49]} {[%emt 00:00:10]} 18.
dxe5 {[%clk 00:08:16]} {[%emt 00:00:03]} Rxe5 {[%clk 00:16:07]} {[%emt
00:00:47]} 19. Bf5 {[%clk 00:04:39]} {[%emt 00:03:42]} Qg5+ {[%clk 00:15:34]}
{[%emt 00:00:37]} 20. Rd2 {[%clk 00:04:27]} {[%emt 00:00:17]} Re8 {[%clk
00:14:33]} {[%emt 00:01:06]} 21. h4 {[%clk 00:02:39]} {[%emt 00:01:54]} Qf6
{[%clk 00:13:22]} {[%emt 00:01:16]} 22. Bxc8 {[%clk 00:02:29]} {[%emt
00:00:15]} Rbxc8 {[%clk 00:13:20]} {[%emt 00:00:06]} 23. Qh8+ {[%clk 00:02:30]}
{[%emt 00:00:05]} Ke7 {[%clk 00:13:13]} {[%emt 00:00:12]} 24. Re1+ {[%clk
00:02:30]} {[%emt 00:00:05]} Qe6 {[%clk 00:13:12]} {[%emt 00:00:06]} 25. Rxe6+
{[%clk 00:02:32]} {[%emt 00:00:03]} Kxe6 {[%clk 00:13:10]} {[%emt 00:00:06]} 26.
Qxg7 {[%clk 00:02:31]} {[%emt 00:00:06]} Rg8 {[%clk 00:13:04]} {[%emt
00:00:11]} 27. Re2+ {[%clk 00:02:31]} {[%emt 00:00:05]} Kd6 {[%clk 00:13:06]}
{[%emt 00:00:03]} 28. Qf6+ {[%clk 00:02:32]} {[%emt 00:00:04]} Kc5 {[%clk
00:13:06]} {[%emt 00:00:05]} 29. Re5+ {[%clk 00:02:32]} {[%emt 00:00:05]} Kc4
{[%clk 00:13:06]} {[%emt 00:00:04]} 30. Qf4+ {[%clk 00:02:33]} {[%emt
00:00:05]} Kd3 {[%clk 00:13:07]} {[%emt 00:00:05]} 31. Re3# {[%clk 00:02:36]}
{[%emt 00:00:02]} 1-0

[Event "MCR rapid mládeže 2023 U16"]
[Site "Harachov, Czech Republic"]
[Date "2023.09.09"]
[Round "2.22"]
[White "Kovac, Pavel"]
[Black "Bara, Jan"]
[Result "0-1"]
[TimeControl "20min+5s/move"]
[WhiteElo "1254"]
[BlackElo "1823"]

1. e4 {[%clk 00:20:09]} c5 {[%clk 00:20:09]} {[%emt 00:00:02]} 2. Nc3 {[%clk
00:20:12]} d6 {[%clk 00:20:05]} {[%emt 00:00:09]} 3. Bb5+ {[%clk 00:20:15]}
{[%emt 00:00:02]} Bd7 {[%clk 00:20:09]} {[%emt 00:00:02]} 4. Bxd7+ {[%clk
00:20:18]} {[%emt 00:00:01]} Qxd7 {[%clk 00:20:13]} {[%emt 00:00:02]} 5. f4
{[%clk 00:20:18]} {[%emt 00:00:04]} g6 {[%clk 00:20:02]} {[%emt 00:00:16]} 6.
Nf3 {[%clk 00:20:19]} {[%emt 00:00:03]} Bg7 {[%clk 00:20:06]} {[%emt 00:00:02]}
7. d3 {[%clk 00:20:22]} {[%emt 00:00:03]} Nc6 {[%clk 00:20:08]} {[%emt
00:00:03]} 8. Be3 {[%clk 00:20:12]} Nf6 {[%clk 00:20:07]} {[%emt 00:00:20]} 9.
O-O {[%clk 00:20:03]} O-O {[%clk 00:20:02]} {[%emt 00:00:23]} 10. Qd2 {[%clk
00:20:00]} Ng4 {[%clk 00:20:01]} {[%emt 00:00:15]} 11. h3 {[%clk 00:19:56]}
Nxe3 {[%clk 00:20:04]} {[%emt 00:00:10]} 12. Qxe3 {[%clk 00:19:58]} Nd4 {[%clk
00:20:08]} {[%emt 00:00:05]} 13. Qd2 {[%clk 00:19:37]} b5 {[%clk 00:19:25]}
{[%emt 00:01:14]} 14. Nxd4 {[%clk 00:19:08]} Bxd4+ {[%clk 00:19:28]} {[%emt
00:00:37]} 15. Kh1 {[%clk 00:19:10]} b4 {[%clk 00:19:28]} {[%emt 00:00:07]} 16.
Ne2 {[%clk 00:18:34]} Bxb2 {[%clk 00:19:22]} {[%emt 00:00:53]} 17. Rab1 {[%clk
00:18:34]} Bg7 {[%clk 00:19:25]} {[%emt 00:00:07]} 18. Ng3 {[%clk 00:18:32]}
{[%emt 00:00:07]} Qa4 {[%clk 00:19:14]} {[%emt 00:00:15]} 19. f5 {[%clk
00:18:04]} {[%emt 00:00:33]} Qxa2 {[%clk 00:18:55]} {[%emt 00:00:24]} 20. h4
{[%clk 00:17:19]} {[%emt 00:00:49]} h6 {[%clk 00:16:03]} {[%emt 00:02:59]} 21.
Ne2 {[%emt 00:04:14]} Rab8 {[%clk 00:12:33]} {[%emt 00:00:57]} 22. d4 {[%clk
00:14:13]} {[%emt 00:01:39]} b3 {[%clk 00:11:23]} {[%emt 00:01:16]} 23. Rbc1
{[%clk 00:10:21]} {[%emt 00:02:25]} b2 {[%clk 00:07:52]} {[%emt 00:05:08]} 24.
Rb1 {[%clk 00:10:00]} {[%emt 00:00:25]} cxd4 {[%clk 00:07:45]} {[%emt
00:00:13]} 25. Nxd4 {[%clk 00:09:42]} {[%emt 00:00:22]} Qc4 {[%clk 00:07:48]}
{[%emt 00:00:03]} 26. Nf3 {[%clk 00:08:33]} {[%emt 00:01:12]} Rfc8 {[%clk
00:06:26]} {[%emt 00:01:28]} 27. Qd3 {[%clk 00:06:22]} {[%emt 00:02:16]} Qxc2
{[%clk 00:05:50]} {[%emt 00:00:41]} 28. Ra1 {[%emt 00:00:16]} 0-1

[Event "MCR rapid mládeže 2023 U16"]
[Site "Harachov, Czech Republic"]
[Date "2023.09.09"]
[Round "2.23"]
[White "Vancakova, Veronika"]
[Black "Strazhnyk, Viktoriia"]
[Result "1-0"]
[TimeControl "20min+5s/move"]
[WhiteElo "1433"]
[BlackElo "1392"]

1. d4 {[%clk 00:20:08]} {[%emt 00:00:01]} Nf6 {[%clk 00:20:08]} {[%emt
00:00:02]} 2. c4 {[%clk 00:20:12]} {[%emt 00:00:02]} g6 {[%clk 00:20:10]}
{[%emt 00:00:02]} 3. Nc3 {[%clk 00:20:16]} {[%emt 00:00:02]} Bg7 {[%clk
00:20:13]} {[%emt 00:00:02]} 4. e4 {[%clk 00:20:20]} {[%emt 00:00:01]} d6
{[%clk 00:20:17]} {[%emt 00:00:01]} 5. Nf3 {[%clk 00:20:23]} {[%emt 00:00:02]}
Bg4 {[%clk 00:20:18]} {[%emt 00:00:04]} 6. Be2 {[%clk 00:20:24]} {[%emt
00:00:03]} O-O {[%clk 00:20:14]} {[%emt 00:00:09]} 7. O-O {[%clk 00:20:22]}
{[%emt 00:00:08]} Nbd7 {[%clk 00:19:58]} {[%emt 00:00:20]} 8. h3 {[%clk
00:20:01]} {[%emt 00:00:27]} Bxf3 {[%clk 00:19:58]} {[%emt 00:00:06]} 9. Bxf3
{[%clk 00:20:04]} e5 {[%clk 00:20:01]} {[%emt 00:00:02]} 10. d5 {[%clk
00:20:06]} {[%emt 00:00:03]} c6 {[%clk 00:20:05]} 11. dxc6 {[%clk 00:19:54]}
{[%emt 00:00:18]} bxc6 {[%clk 00:20:09]} {[%emt 00:00:01]} 12. Qxd6 {[%clk
00:19:57]} {[%emt 00:00:02]} Rc8 {[%clk 00:20:05]} {[%emt 00:00:09]} 13. Bg5
{[%clk 00:19:43]} {[%emt 00:00:18]} h6 {[%clk 00:19:52]} {[%emt 00:00:18]} 14.
Bh4 {[%clk 00:19:08]} {[%emt 00:00:41]} g5 {[%clk 00:19:47]} {[%emt 00:00:10]}
15. Bg3 {[%clk 00:19:10]} {[%emt 00:00:03]} Ne8 {[%clk 00:18:49]} {[%emt
00:01:02]} 16. Qd2 {[%clk 00:18:57]} {[%emt 00:00:18]} Nc5 {[%clk 00:18:08]}
{[%emt 00:00:46]} 17. Rfd1 {[%clk 00:15:19]} {[%emt 00:03:44]} Qxd2 {[%clk
00:17:15]} {[%emt 00:00:58]} 18. Rxd2 {[%clk 00:15:23]} {[%emt 00:00:01]} Nc7
{[%clk 00:16:46]} {[%emt 00:00:33]} 19. Rad1 {[%clk 00:15:11]} {[%emt
00:00:17]} N7e6 {[%clk 00:16:36]} {[%emt 00:00:16]} 20. Bg4 {[%clk 00:14:51]}
{[%emt 00:00:24]} Rc7 {[%clk 00:15:19]} {[%emt 00:01:21]} 21. b4 {[%clk
00:14:17]} {[%emt 00:00:39]} Na6 {[%clk 00:15:10]} {[%emt 00:00:14]} 22. Bxe6
{[%clk 00:13:23]} {[%emt 00:01:00]} fxe6 {[%clk 00:15:13]} {[%emt 00:00:01]} 23.
a3 {[%clk 00:13:27]} {[%emt 00:00:02]} h5 {[%clk 00:13:45]} {[%emt 00:01:32]}
24. f3 {[%clk 00:12:08]} {[%emt 00:01:24]} h4 {[%clk 00:13:04]} {[%emt
00:00:47]} 25. Bf2 {[%clk 00:12:04]} {[%emt 00:00:09]} Rff7 {[%clk 00:12:27]}
{[%emt 00:00:42]} 26. Be3 {[%clk 00:11:58]} {[%emt 00:00:11]} Bf6 {[%clk
00:11:19]} {[%emt 00:01:02]} 27. Rd6 {[%clk 00:11:26]} {[%emt 00:00:47]} c5
{[%clk 00:08:18]} {[%emt 00:03:07]} 28. Nb5 {[%clk 00:09:49]} {[%emt 00:01:41]}
Rc8 {[%clk 00:07:26]} {[%emt 00:00:58]} 29. Rxa6 {[%clk 00:09:48]} {[%emt
00:00:06]} cxb4 {[%clk 00:07:29]} {[%emt 00:00:02]} 30. Nd6 {[%clk 00:09:34]}
{[%emt 00:00:19]} Rd7 {[%clk 00:06:56]} {[%emt 00:00:36]} 31. Rxa7 {[%clk
00:07:27]} {[%emt 00:02:13]} Rxa7 {[%clk 00:07:00]} {[%emt 00:00:02]} 32. Bxa7
{[%clk 00:07:30]} {[%emt 00:00:02]} Ra8 {[%clk 00:07:02]} {[%emt 00:00:02]} 33.
Nb5 {[%clk 00:03:24]} {[%emt 00:04:11]} bxa3 {[%clk 00:07:01]} {[%emt
00:00:07]} 34. Ra1 {[%clk 00:02:46]} {[%emt 00:00:43]} Be7 {[%clk 00:07:04]}
{[%emt 00:00:02]} 35. Kh2 {[%clk 00:02:41]} {[%emt 00:00:10]} Kf8 {[%clk
00:06:40]} {[%emt 00:00:28]} 36. c5 {[%clk 00:02:01]} {[%emt 00:00:46]} Rc8
{[%clk 00:06:28]} {[%emt 00:00:17]} 37. Nd6 {[%clk 00:01:15]} {[%emt 00:00:50]}
Bxd6 {[%clk 00:06:21]} {[%emt 00:00:12]} 38. cxd6 {[%clk 00:01:17]} {[%emt
00:00:03]} Rd8 {[%clk 00:06:09]} {[%emt 00:00:18]} 39. Bc5 {[%clk 00:01:15]}
{[%emt 00:00:07]} Ke8 {[%clk 00:06:00]} {[%emt 00:00:14]} 40. Rxa3 {[%clk
00:01:17]} {[%emt 00:00:02]} Kd7 {[%clk 00:06:00]} {[%emt 00:00:05]} 41. Rd3
{[%clk 00:01:13]} {[%emt 00:00:09]} Kc6 {[%clk 00:06:03]} {[%emt 00:00:02]} 42.
Be3 {[%clk 00:01:16]} {[%emt 00:00:03]} Rxd6 {[%clk 00:05:59]} {[%emt
00:00:09]} 43. Rxd6+ {[%clk 00:01:19]} {[%emt 00:00:01]} Kxd6 {[%clk 00:06:02]}
{[%emt 00:00:02]} 44. Bxg5 {[%clk 00:01:23]} Kd7 {[%clk 00:05:35]} {[%emt
00:00:31]} 45. Bxh4 {[%clk 00:01:26]} {[%emt 00:00:02]} Ke8 {[%clk 00:05:39]}
{[%emt 00:00:02]} 46. Bf6 {[%clk 00:01:29]} {[%emt 00:00:02]} Kf7 {[%clk
00:05:43]} {[%emt 00:00:01]} 47. Bxe5 {[%clk 00:01:32]} {[%emt 00:00:02]} 1-0

[Event "MCR rapid mládeže 2023 U16"]
[Site "Harachov, Czech Republic"]
[Date "2023.09.09"]
[Round "2.24"]
[White "Janouskova, Eliska"]
[Black "Lackova, Lucie"]
[Result "1/2-1/2"]
[TimeControl "20min+5s/move"]
[WhiteElo "1333"]
[BlackElo "1544"]

1. e4 {[%clk 00:20:28]} {[%emt 00:00:01]} c6 {[%clk 00:20:29]} {[%emt
00:00:01]} 2. Nf3 {[%clk 00:20:30]} {[%emt 00:00:02]} d5 {[%clk 00:20:33]}
{[%emt 00:00:02]} 3. Nc3 {[%clk 00:20:33]} {[%emt 00:00:02]} dxe4 {[%clk
00:20:31]} {[%emt 00:00:07]} 4. Nxe4 {[%clk 00:20:34]} {[%emt 00:00:03]} Bf5
{[%clk 00:20:28]} {[%emt 00:00:08]} 5. Ng3 {[%clk 00:20:25]} {[%emt 00:00:14]}
Bg6 {[%clk 00:20:30]} {[%emt 00:00:04]} 6. h4 {[%clk 00:19:59]} {[%emt
00:00:30]} h6 {[%clk 00:20:27]} {[%emt 00:00:09]} 7. Ne5 {[%clk 00:19:57]}
{[%emt 00:00:06]} Qd6 {[%clk 00:17:20]} {[%emt 00:03:10]} 8. d4 {[%clk
00:16:50]} {[%emt 00:03:14]} Nd7 {[%clk 00:14:39]} {[%emt 00:02:47]} 9. Nxg6
{[%clk 00:16:53]} {[%emt 00:00:02]} Qxg6 {[%clk 00:14:05]} {[%emt 00:00:39]} 10.
Bd3 {[%clk 00:15:57]} {[%emt 00:01:01]} Qd6 {[%clk 00:12:48]} {[%emt 00:01:19]}
11. Be3 {[%clk 00:13:40]} {[%emt 00:02:24]} Ngf6 {[%clk 00:11:06]} {[%emt
00:01:48]} 12. c4 {[%clk 00:09:57]} {[%emt 00:03:48]} Qc7 {[%clk 00:09:33]}
{[%emt 00:01:37]} 13. Qe2 {[%clk 00:08:05]} {[%emt 00:01:58]} e6 {[%clk
00:08:44]} {[%emt 00:00:54]} 14. Bd2 {[%clk 00:06:39]} {[%emt 00:01:30]} Be7
{[%clk 00:08:07]} {[%emt 00:00:42]} 15. Bc3 {[%clk 00:05:34]} {[%emt 00:01:11]}
Nb6 {[%clk 00:07:36]} {[%emt 00:00:37]} 16. Qc2 {[%clk 00:04:51]} {[%emt
00:00:47]} c5 {[%clk 00:04:34]} {[%emt 00:03:07]} 17. dxc5 {[%clk 00:02:56]}
{[%emt 00:02:00]} Qxc5 {[%clk 00:03:38]} {[%emt 00:01:00]} 18. b3 {[%clk
00:01:58]} {[%emt 00:01:04]} Qc6 {[%clk 00:02:13]} {[%emt 00:01:20]} 19. Ne4
{[%clk 00:01:34]} {[%emt 00:00:39]} Nbd7 {[%clk 00:00:49]} {[%emt 00:01:29]} 20.
O-O-O {[%clk 00:01:02]} {[%emt 00:00:37]} Qc7 {[%clk 00:00:28]} {[%emt
00:00:26]} 21. f3 {[%clk 00:00:53]} {[%emt 00:00:14]} a5 {[%clk 00:00:30]}
{[%emt 00:00:03]} 22. a4 {[%clk 00:00:25]} {[%emt 00:00:33]} Rc8 {[%clk
00:00:30]} {[%emt 00:00:05]} 23. Rhe1 {[%clk 00:00:26]} {[%emt 00:00:04]} b5
{[%clk 00:00:16]} {[%emt 00:00:19]} 24. axb5 {[%clk 00:00:26]} {[%emt
00:00:05]} Ra8 {[%clk 00:00:18]} {[%emt 00:00:03]} 25. Qa2 {[%clk 00:00:23]}
{[%emt 00:00:08]} Qa7 {[%clk 00:00:09]} {[%emt 00:00:13]} 26. Bc2 {[%clk
00:00:12]} {[%emt 00:00:17]} O-O {[%clk 00:00:12]} {[%emt 00:00:02]} 27. Re2
{[%clk 00:00:14]} {[%emt 00:00:02]} Rfb8 {[%clk 00:00:15]} {[%emt 00:00:02]} 28.
Red2 {[%clk 00:00:15]} {[%emt 00:00:05]} Rd8 {[%clk 00:00:14]} {[%emt
00:00:06]} 29. g3 {[%clk 00:00:19]} {[%emt 00:00:02]} Rab8 {[%clk 00:00:08]}
{[%emt 00:00:10]} 30. Nxf6+ {[%clk 00:00:22]} {[%emt 00:00:02]} Bxf6 {[%clk
00:00:12]} {[%emt 00:00:02]} 31. Bxa5 {[%clk 00:00:21]} {[%emt 00:00:05]} Be7
{[%clk 00:00:09]} {[%emt 00:00:08]} 32. Kb2 {[%emt 00:00:08]} Bf6+ {[%clk
00:00:12]} 33. Kb1 {[%clk 00:00:23]} {[%emt 00:00:01]} Ra8 {[%clk 00:00:14]}
{[%emt 00:00:04]} 34. Be4 {[%clk 00:00:14]} {[%emt 00:00:13]} Qxa5 {[%clk
00:00:14]} {[%emt 00:00:06]} 35. Qxa5 {[%clk 00:00:18]} {[%emt 00:00:01]} Rxa5
{[%clk 00:00:18]} {[%emt 00:00:01]} 36. Rxd7 Rxd7 {[%clk 00:00:21]} 37. Rxd7
{[%clk 00:00:17]} {[%emt 00:00:07]} Ra1+ {[%clk 00:00:22]} {[%emt 00:00:03]} 38.
Kc2 {[%clk 00:00:19]} {[%emt 00:00:03]} 1/2-1/2